fUST/lending_fUST_20250614
["ID","MTS","AMOUNT","RATE_DAILY","PERIOD"]
[365747074,1749871840087,-460.0,0.00022825,4]
[365747075,1749871840100,-155.0,0.00022825,2]
[365747076,1749871840112,-1011.39123882,0.000229,8]
[365747077,1749871840126,-160.0,0.0002291,2]
[365747078,1749871840140,-835.41710878,0.00022918,2]
[365747079,1749871840152,-160.0,0.00022918,2]
[365747080,1749871840163,-213.28201367,0.00022918,2]
[365747081,1749871840176,-2128.81,0.00022925,4]
[365747082,1749871840188,-460.0,0.00022925,4]
[365747083,1749871840202,-460.0,0.00022925,4]
[365747084,1749871840215,-593.33,0.00022925,4]
[365747085,1749871840226,-460.0,0.00022925,4]
[365747086,1749871840236,-646.24,0.00022925,4]
[365747087,1749871840248,-237.98058756,0.00022925,4]
[365747088,1749871840259,-460.0,0.00022925,4]
[365747089,1749871840271,-460.0,0.00022926,4]
[365747090,1749871840284,-460.0,0.00022926,4]
[365747091,1749871840296,-460.0,0.00022926,4]
[365747092,1749871840308,-460.0,0.00022928,2]
[365747093,1749871840320,-1011.39123874,0.00022969,8]
[365747095,1749871840332,-265.2,0.00022976,10]
[365747097,1749871840344,-5000.0,0.00022986,2]
[365747098,1749871840356,-883.48,0.0002299,3]
[365747099,1749871840369,-441.74,0.0002299,3]
[365747100,1749871840380,-381.88,0.0002299,10]
[365747101,1749871840390,-327.37,0.0002299,3]
[365747102,1749871840400,-318.24,0.0002299,10]
[365747103,1749871840410,-163.69,0.0002299,3]
[365747104,1749871840420,-500.0,0.00022999,2]
[365747105,1749871840433,-500.0,0.00022999,2]
[365747107,1749871840446,-500.0,0.00022999,2]
[365747108,1749871840458,-512.55088982,0.00022999,2]
[365747109,1749871840470,-500.0,0.00022999,2]
[365747110,1749871840481,-500.0,0.00022999,2]
[365747111,1749871840491,-630.78540054,0.00022999,2]
[365747112,1749871840503,-329.39385442,0.00023,2]
[365747113,1749871840514,-11685.0,0.00023,2]
[365747114,1749871840532,-12071.34216834,0.00023,2]
[365747115,1749871840543,-57463.10125776,0.00023,20]
[365747116,1749871840554,-3028.69145512,0.00023,2]
[365747117,1749871840565,-1329.44870529,0.00023,2]
[365747118,1749871840575,-1011.39123874,0.00023038,8]
[365747119,1749871840587,-2162.91932362,0.0002305,2]
[365747120,1749871840598,-3000.0,0.0002306,2]
[365747121,1749871840610,-3000.0,0.0002307,2]
[365747122,1749871840622,-3000.0,0.0002308,2]
[365747123,1749871840632,-3000.0,0.0002309,2]
[365747124,1749871840644,-500.0,0.00023097,2]
[365747125,1749871840655,-160.0,0.00023097,2]
[365747126,1749871840667,-714.13,0.00023099,4]
[365747127,1749871840678,-460.0,0.00023099,4]
[365747128,1749871840689,-460.0,0.00023099,4]
[365747129,1749871840700,-460.0,0.00023099,4]
[365747130,1749871840711,-764.37,0.00023099,4]
[365747131,1749871840722,-460.0,0.00023099,4]
[365747132,1749871840733,-3000.0,0.000231,2]
[365747133,1749871840744,-1011.39123874,0.00023107,8]
[365747134,1749871840756,-3000.0,0.0002311,2]
[365747135,1749871840767,-3000.0,0.0002312,2]
[365747136,1749871840777,-30610.83320738,0.0002313,2]
[365747137,1749871840788,-57716.18159781,0.0002313,2]
[365747138,1749871840799,-3000.0,0.0002313,2]
[365747139,1749871840811,-575.0,0.00023138,2]
[365747140,1749871840822,-3000.0,0.0002314,2]
[365747141,1749871840833,-1474.28785897,0.00023145,2]
[365747142,1749871840844,-3000.0,0.0002315,2]
[365747143,1749871840855,-176.96418779,0.00023151,2]
[365747144,1749871840865,-273.0,0.00023158,2]
[365747145,1749871840876,-3000.0,0.0002316,2]
[365747146,1749871840887,-160.0,0.00023166,2]
[365747147,1749871840898,-424.40141186,0.00023166,2]
[365747148,1749871840910,-160.0,0.00023166,2]
[365747149,1749871840921,-845.10789306,0.00023166,2]
[365747150,1749871840931,-3000.0,0.0002317,2]
[365747151,1749871840942,-1011.39123874,0.00023176,8]
[365747152,1749871840953,-3000.0,0.0002318,2]
[365747153,1749871840964,-3000.0,0.0002319,2]
[365747154,1749871840975,-420.0,0.00023193,2]
[365747155,1749871840986,-728.0,0.00023199,2]
[365747156,1749871840997,-2128.81,0.00023199,4]
[365747157,1749871841008,-460.0,0.00023199,4]
[365747158,1749871841019,-460.0,0.00023199,4]
[365747159,1749871841030,-593.33,0.00023199,4]
[365747160,1749871841041,-460.0,0.00023199,4]
[365747161,1749871841052,-646.24,0.00023199,4]
[365747162,1749871841063,-460.0,0.00023199,4]
[365747163,1749871841074,-3000.0,0.000232,2]
[365747164,1749871841085,-460.0,0.000232,4]
[365747165,1749871841095,-460.0,0.000232,4]
[365747166,1749871841107,-460.0,0.000232,4]
[365747167,1749871841119,-460.0,0.00023202,2]
[365747168,1749871841133,-153.0,0.00023204,2]
[365747169,1749871841143,-153.0,0.00023204,2]
[365747170,1749871841153,-153.0,0.00023204,2]
[365747171,1749871841163,-153.0,0.00023204,2]
[365747172,1749871841298,-153.0,0.00023204,2]
[365747173,1749871841314,-153.0,0.00023204,2]
[365747174,1749871841324,-3000.0,0.0002321,2]
[365747175,1749871841334,-507.0,0.00023215,2]
[365747176,1749871841343,-3000.0,0.0002322,2]
[365747177,1749871841353,-3000.0,0.0002323,2]
[365747178,1749871841363,-3000.0,0.0002324,2]
[365747179,1749871841372,-1011.39123874,0.00023245,8]
[365747180,1749871841381,-3385.09777,0.0002325,2]
[365747181,1749871841390,-1474.28785896,0.00023284,2]
[365747182,1749871841400,-151.0,0.000233,8]
[365747183,1749871841409,-1795.953565,0.00023304,3]
[365747184,1749871841419,-1011.39123874,0.00023314,9]
[365747185,1749871841428,-300.2312045,0.00023342,2]
[365747186,1749871841438,-9012.8554264,0.0002335,2]
[365747187,1749871841447,-714.13,0.00023373,4]
[365747188,1749871841457,-460.0,0.00023373,4]
[365747189,1749871841466,-460.0,0.00023373,4]
[365747190,1749871841475,-460.0,0.00023373,4]
[365747191,1749871841485,-764.37,0.00023373,4]
[365747192,1749871841495,-460.0,0.00023373,4]
[365747193,1749871841504,-1011.39123874,0.00023383,9]
[365747194,1749871841514,-160.0,0.000234,5]
[365747195,1749871841523,-95007.82,0.000234,7]
[365747196,1749871841532,-213.28201367,0.000234,7]
[365747197,1749871841541,-12533.30537164,0.000234,7]
[365747198,1749871841551,-151.0,0.000234,8]
[365747199,1749871841560,-160.0,0.000234,7]
[365747200,1749871841569,-153.451976,0.000234,7]
[365747201,1749871841578,-1474.28785896,0.00023423,2]
[365747202,1749871841587,-800.0,0.00023425,2]
[365747203,1749871841597,-575.0,0.00023427,2]
[365747204,1749871841607,-150.28992876,0.00023427,2]
[365747205,1749871841616,-152.552,0.00023437,2]
[365747206,1749871841625,-250.0,0.00023437,2]
[365747207,1749871841635,-249.539,0.00023437,2]
[365747208,1749871841644,-258.421,0.00023437,2]
[365747209,1749871841653,-215.773,0.00023437,2]
[365747210,1749871841663,-2891.9,0.0002344,12]
[365747211,1749871841672,-575.0,0.00023447,2]
[365747212,1749871841681,-800.0,0.00023449,2]
[365747213,1749871841690,-1011.39123874,0.00023452,9]
[365747214,1749871841699,-176.96418779,0.00023452,2]
[365747215,1749871841708,-2128.81,0.00023473,4]
[365747216,1749871841716,-460.0,0.00023473,4]
[365747217,1749871841725,-460.0,0.00023473,4]
[365747218,1749871841734,-593.33,0.00023473,4]
[365747219,1749871841742,-460.0,0.00023473,4]
[365747220,1749871841751,-646.24,0.00023473,4]
[365747221,1749871841760,-460.0,0.00023473,4]
[365747222,1749871841769,-404.87061608,0.00023474,4]
[365747223,1749871841778,-362.79426522,0.00023474,4]
[365747224,1749871841787,-460.0,0.00023474,4]
[365747225,1749871841796,-460.0,0.00023476,2]
[365747226,1749871841806,-168.0,0.0002349,2]
[365747227,1749871841816,-89314.7214293,0.000235,2]
[365747228,1749871841825,-151.0,0.000235,5]
[365747229,1749871841835,-151.0,0.000235,7]
[365747230,1749871841845,-1011.39123874,0.00023521,9]
[365747231,1749871841854,-575.0,0.00023523,2]
[365747232,1749871841863,-5000.0,0.00023534,2]
[365747233,1749871841873,-200.0,0.00023543,2]
[365747234,1749871841883,-800.0,0.00023552,2]
[365747235,1749871841892,-1474.28785896,0.00023561,2]
[365747236,1749871841901,-964.355,0.00023578,2]
[365747237,1749871841911,-405.0,0.00023578,2]
[365747238,1749871841920,-405.0,0.00023578,2]
[365747239,1749871841929,-653.0,0.00023578,2]
[365747240,1749871841938,-168.0,0.00023586,2]
[365747241,1749871841948,-1011.39123874,0.0002359,9]
[365747242,1749871841958,-151.0,0.000236,7]
[365747243,1749871841967,-49320.5345563,0.000236,2]
[365747244,1749871841976,-200.0,0.00023622,2]
[365747245,1749871841986,-200.0,0.0002364,2]
[365747246,1749871841995,-500.0,0.00023645,2]
[365747247,1749871842005,-714.13,0.00023647,4]
[365747248,1749871842014,-460.0,0.00023647,4]
[365747249,1749871842023,-460.0,0.00023647,4]
[365747250,1749871842033,-460.0,0.00023647,4]
[365747251,1749871842042,-764.37,0.00023647,4]
[365747252,1749871842054,-460.0,0.00023647,4]
[365747253,1749871842063,-1011.39123874,0.00023659,9]
[365747254,1749871842073,-164.28577677,0.0002368,4]
[365747255,1749871842082,-164.28577677,0.0002368,4]
[365747256,1749871842091,-164.28577677,0.0002368,4]
[365747257,1749871842101,-164.28577677,0.0002368,4]
[365747258,1749871842110,-164.28,0.0002368,4]
[365747259,1749871842120,-159.72228297,0.0002368,4]
[365747260,1749871842131,-159.72228297,0.0002368,4]
[365747261,1749871842140,-159.72228297,0.0002368,4]
[365747262,1749871842150,-159.72228297,0.0002368,4]
[365747263,1749871842159,-159.72228297,0.0002368,4]
[365747264,1749871842171,-159.72228297,0.0002368,4]
[365747265,1749871842180,-159.72228297,0.0002368,4]
[365747266,1749871842189,-159.72228297,0.0002368,4]
[365747267,1749871842199,-159.72228297,0.0002368,4]
[365747268,1749871842211,-159.72228297,0.0002368,4]
[365747269,1749871842220,-159.72228297,0.0002368,4]
[365747270,1749871842230,-3000.0,0.000237,2]
[365747271,1749871842240,-151.0,0.000237,5]
[365747272,1749871842249,-150.0,0.000237,30]
[365747273,1749871842258,-1474.28785896,0.000237,2]
[365747274,1749871842267,-167.63761846,0.000237,2]
[365747275,1749871842277,-150.22676,0.000237,2]
[365747276,1749871842286,-151.0,0.000237,5]
[365747277,1749871842295,-151.0,0.000237,6]
[365747278,1749871842305,-159.72,0.000237,4]
[365747279,1749871842315,-3000.0,0.0002371,2]
[365747280,1749871842324,-3607.33,0.00023717,2]
[365747281,1749871842334,-151.0,0.00023717,7]
[365747282,1749871842343,-151.0,0.00023717,7]
[365747283,1749871842352,-151.0,0.00023717,7]
[365747284,1749871842362,-3000.0,0.0002372,2]
[365747285,1749871842372,-1011.39123874,0.00023728,9]
[365747286,1749871842381,-3000.0,0.0002373,2]
[365747287,1749871842390,-3000.0,0.0002374,2]
[365747288,1749871842400,-2128.81,0.00023747,4]
[365747289,1749871842410,-460.0,0.00023747,4]
[365747290,1749871842420,-460.0,0.00023747,4]
[365747291,1749871842430,-593.33,0.00023747,4]
[365747292,1749871842439,-460.0,0.00023747,4]
[365747293,1749871842449,-646.24,0.00023747,4]
[365747294,1749871842458,-460.0,0.00023747,4]
[365747295,1749871842468,-460.0,0.00023748,4]
[365747296,1749871842477,-3000.0,0.0002375,2]
[365747297,1749871842487,-460.0,0.0002375,2]
[365747298,1749871842496,-176.96418779,0.00023753,2]
[365747299,1749871842505,-3000.0,0.0002376,2]
[365747300,1749871842515,-3000.0,0.0002377,2]
[365747301,1749871842524,-500.0,0.00023773,2]
[365747302,1749871842534,-501.18193787,0.00023773,2]
[365747303,1749871842543,-500.0,0.00023773,2]
[365747304,1749871842552,-500.98830008,0.00023773,2]
[365747305,1749871842561,-500.0,0.00023773,2]
[365747306,1749871842570,-500.0,0.00023773,2]
[365747307,1749871842579,-504.81255339,0.00023773,2]
[365747308,1749871842588,-500.0,0.00023773,2]
[365747309,1749871842598,-500.0,0.00023773,2]
[365747310,1749871842607,-501.41379653,0.00023773,2]
[365747311,1749871842616,-501.06854497,0.00023773,2]
[365747312,1749871842625,-513.4045382,0.00023773,2]
[365747313,1749871842634,-501.36108504,0.00023773,2]
[365747314,1749871842644,-71015.44981471,0.0002378,5]
[365747315,1749871842787,-491.09,0.0002299,3]
[365747316,1749871842797,-6824.67879487,0.0002378,5]
[365747317,1749871842809,-4283.79822044,0.0002378,5]
[365747367,1749871843472,-160.0,0.00023148,2]
[365747368,1749871843482,-424.40141186,0.00023148,2]
[365747369,1749871843492,-30368.00667397,0.0002378,5]
[365747370,1749871843502,-160.0,0.0002378,3]
[365747371,1749871843512,-2369.31042382,0.0002378,2]
[365747403,1749871846468,-1147.26318915,0.00023542,2]
[365747404,1749871846920,-3852.73681085,0.00023542,2]
[365747405,1749871846929,-2160.0,0.00023578,2]
[365747406,1749871846938,-630.68957618,0.0002378,2]
[365747407,1749871846947,-317.0,0.0002378,3]
[365747408,1749871846956,-317.0,0.0002378,3]
[365747409,1749871846965,-1745.0,0.0002378,3]
[365747410,1749871846975,-151.0,0.0002378,3]
[365747411,1749871846983,-715.7023445,0.0002378,3]
[365747412,1749871879232,162.448084,0.00013699,2]
[365747415,1749872047436,4142.60156614,0.0002494,60]
[365747416,1749872059917,-4748.0,0.00021248,2]
[365747417,1749872125714,3006.7155442,0.000245,120]
[365747421,1749872266286,801.62618318,0.00017999,2]
[365747423,1749872384778,-174.71491755,0.0002148,2]
[365747424,1749872384801,-460.0,0.00021679,4]
[365747425,1749872384963,-150.0,0.0002168,2]
[365747426,1749872384988,-300.0,0.00021739,2]
[365747427,1749872385011,-300.0,0.00021739,2]
[365747428,1749872385032,-213.5050616,0.0002174,4]
[365747429,1749872385053,-457.34451038,0.0002174,4]
[365747430,1749872385076,-456.33358987,0.0002174,4]
[365747431,1749872385096,-414.39149977,0.0002174,4]
[365747432,1749872385117,-453.64935096,0.0002174,4]
[365747433,1749872385137,-445.30521594,0.0002174,4]
[365747434,1749872385158,-441.64948714,0.0002174,4]
[365747435,1749872385179,-454.44261084,0.0002174,4]
[365747436,1749872385200,-278.66375595,0.0002174,4]
[365747437,1749872583337,-2772.0,0.00020927,2]
[365747438,1749872648681,-199.0269164,0.00020717,2]
[365747439,1749872648702,-100.9730836,0.00020927,2]
[365747442,1749872716293,-855.0,0.00020717,2]
[365747443,1749872730127,-279.69465583,0.00020717,2]
[365747444,1749872730147,-10.9630844,0.00020927,2]
[365747445,1749872730168,-158.17852619,0.00021622,3]
[365747446,1749872730189,-150.0,0.0002168,2]
[365747447,1749872730211,-1791.34,0.0002172,2]
[365747448,1749872730232,-171.7,0.00021739,2]
[365747449,1749872730253,-300.0,0.00021739,2]
[365747450,1749872730275,-300.0,0.00021739,2]
[365747451,1749872730296,-1200.0,0.00021739,2]
[365747452,1749872730318,-460.0,0.0002174,4]
[365747453,1749872730340,-460.0,0.0002174,4]
[365747454,1749872730360,-477.55927474,0.0002174,4]
[365747455,1749872730381,-460.0,0.0002174,2]
[365747456,1749872730401,-460.0,0.0002174,4]
[365747457,1749872730425,-401.89285005,0.0002174,4]
[365747458,1749872730446,-460.0,0.0002174,4]
[365747459,1749872730468,-460.0,0.0002174,4]
[365747460,1749872730490,-579.76777114,0.0002174,4]
[365747461,1749872730509,-299.63837266,0.0002181,2]
[365747462,1749872730538,-1417.43045538,0.000219,6]
[365747463,1749872831083,-291.49181314,0.0002172,2]
[365747464,1749872834114,-1477.04818686,0.0002172,2]
[365747465,1749872834143,-123.80873376,0.000219,6]
[365747466,1749872834165,-315.74914455,0.00021913,2]
[365747467,1749872834188,-5000.0,0.0002194,2]
[365747468,1749872834208,-171.0,0.00022,2]
[365747469,1749872834237,-1541.23918885,0.00022003,6]
[365747470,1749872834256,-244.34315868,0.00022007,2]
[365747471,1749872834278,-300.0,0.00022011,2]
[365747472,1749872834299,-460.31840837,0.00022012,4]
[365747473,1749872834320,-420.32670754,0.00022012,4]
[365747474,1749872834342,-460.0,0.00022012,4]
[365747475,1749872834365,-297.43929471,0.00022012,4]
[365747476,1749872842083,-235.65070529,0.00022012,4]
[365747477,1749872842108,-712.49040914,0.00022012,4]
[365747478,1749872846110,-542.69194541,0.00022012,4]
[365747480,1749872866196,162.501155,0.00013699,2]
[365747488,1749873015227,889.33018576,0.00023628,120]
[365747523,1749873032754,-5198.48613057,0.00021597,2]
[365747540,1749873032915,-689.51386943,0.00021597,2]
[365747542,1749873032926,-1767.27,0.0002176,2]
[365747544,1749873032936,-276.28050149,0.00021913,2]
[365747545,1749873032945,-300.0,0.0002201,2]
[365747546,1749873032954,-460.0,0.00022011,4]
[365747547,1749873032964,-355.04618047,0.00022011,4]
[365747548,1749873032973,-2835.27,0.00022011,4]
[365747549,1749873032983,-549.21,0.00022011,4]
[365747550,1749873032997,-469.67,0.00022011,4]
[365747551,1749873033006,-586.2366779,0.00022011,4]
[365747552,1749873033016,-460.0,0.00022011,4]
[365747553,1749873033026,-459.3748151,0.00022011,4]
[365747554,1749873033035,-836.52,0.00022011,4]
[365747555,1749873033044,-440.0,0.00022011,4]
[365747556,1749873033053,-440.0,0.00022011,4]
[365747557,1749873033062,-385.28706331,0.00022011,4]
[365747558,1749873033071,-460.0,0.00022011,4]
[365747559,1749873033081,-460.0,0.00022011,4]
[365747560,1749873033091,-515.28,0.00022011,4]
[365747561,1749873033101,-773.31,0.00022011,4]
[365747562,1749873033110,-460.0,0.00022011,4]
[365747563,1749873033119,-460.0,0.00022011,4]
[365747564,1749873033128,-460.0,0.00022011,4]
[365747565,1749873033138,-460.0,0.00022011,4]
[365747566,1749873033147,-273.84027113,0.00022012,4]
[365747567,1749873033157,-460.0,0.00022012,4]
[365747568,1749873033167,-460.0,0.00022012,4]
[365747569,1749873033177,-460.0,0.00022012,4]
[365747570,1749873033186,-460.0,0.00022012,4]
[365747571,1749873033195,-848.54,0.00022012,4]
[365747572,1749873033205,-460.0,0.00022012,4]
[365747573,1749873033214,-460.0,0.00022012,4]
[365747574,1749873033223,-460.0,0.00022012,4]
[365747575,1749873033232,-460.0,0.00022012,4]
[365747576,1749873033242,-460.0,0.00022012,4]
[365747577,1749873033251,-323.32422134,0.00022012,4]
[365747578,1749873033260,-460.0,0.00022012,4]
[365747579,1749873033270,-155.0,0.00022012,2]
[365747580,1749873033279,-460.0,0.00022012,4]
[365747581,1749873033289,-460.0,0.00022012,4]
[365747582,1749873033298,-460.0,0.00022012,4]
[365747583,1749873033307,-460.0,0.00022012,4]
[365747584,1749873033316,-870.39,0.00022012,4]
[365747585,1749873033326,-460.0,0.00022012,4]
[365747586,1749873033335,-565.28389702,0.00022012,4]
[365747587,1749873033346,-460.0,0.00022012,4]
[365747588,1749873033355,-383.16184274,0.00022012,4]
[365747589,1749873033365,-505.17356926,0.00022013,4]
[365747590,1749873033375,-480.05826686,0.00022013,4]
[365747591,1749873033385,-500.0,0.00022013,2]
[365747592,1749873033394,-184.20214409,0.00022013,4]
[365747593,1749873033403,-394.49453263,0.00022013,4]
[365747594,1749873033413,-457.2290239,0.00022013,4]
[365747595,1749873033422,-373.48795332,0.00022013,4]
[365747596,1749873033431,-460.0,0.00022013,4]
[365747597,1749873033441,-420.07113742,0.00022013,4]
[365747598,1749873033453,-440.0,0.00022013,4]
[365747599,1749873033462,-487.22,0.00022013,4]
[365747600,1749873033472,-460.0,0.00022013,2]
[365747601,1749873033481,-460.0,0.00022014,4]
[365747602,1749873033491,-425.78891145,0.00022014,4]
[365747603,1749873033504,-154.19861896,0.00022014,4]
[365747604,1749873033514,-152.87692428,0.00022014,4]
[365747605,1749873033524,-151.0,0.00022102,4]
[365747606,1749873033533,-205.91970355,0.00022102,4]
[365747607,1749873033543,-200.09460149,0.00022102,4]
[365747608,1749873033553,-160.24847629,0.00022102,4]
[365747609,1749873033562,-205.67995578,0.00022102,4]
[365747610,1749873033572,-205.99510082,0.00022102,4]
[365747611,1749873033583,-154.53364251,0.00022102,4]
[365747612,1749873033594,-153.34115722,0.00022102,4]
[365747613,1749873033603,-155.64696353,0.00022102,4]
[365747614,1749873033613,-168.34437473,0.00022129,4]
[365747615,1749873033623,-460.0,0.00022285,4]
[365747616,1749873033632,-2835.27,0.00022285,4]
[365747617,1749873033642,-549.21,0.00022285,4]
[365747618,1749873033651,-469.67,0.00022285,4]
[365747619,1749873033661,-836.52,0.00022285,4]
[365747620,1749873033671,-460.0,0.00022285,4]
[365747621,1749873033680,-460.0,0.00022285,4]
[365747622,1749873033690,-515.28,0.00022285,4]
[365747623,1749873033699,-773.31,0.00022285,4]
[365747624,1749873033709,-460.0,0.00022285,4]
[365747625,1749873033718,-460.0,0.00022285,4]
[365747626,1749873033727,-460.0,0.00022285,4]
[365747627,1749873033737,-150.5165868,0.00022285,4]
[365747628,1749873033746,-460.0,0.00022286,4]
[365747629,1749873033757,-460.0,0.00022286,4]
[365747630,1749873033766,-460.0,0.00022286,4]
[365747631,1749873033776,-848.54,0.00022286,4]
[365747632,1749873033786,-460.0,0.00022286,4]
[365747633,1749873033796,-460.0,0.00022286,4]
[365747634,1749873033806,-460.0,0.00022286,4]
[365747635,1749873033815,-460.0,0.00022286,4]
[365747636,1749873033825,-460.0,0.00022286,4]
[365747637,1749873033834,-460.0,0.00022286,4]
[365747638,1749873033844,-460.0,0.00022286,4]
[365747639,1749873033854,-460.0,0.00022286,4]
[365747640,1749873033863,-460.0,0.00022286,4]
[365747641,1749873033873,-870.39,0.00022286,4]
[365747642,1749873033882,-460.0,0.00022286,4]
[365747643,1749873033892,-426.86003926,0.00022286,4]
[365747644,1749873033901,-332.96617656,0.00022287,2]
[365747645,1749873033911,-440.0,0.00022287,4]
[365747646,1749873033921,-460.0,0.00022287,2]
[365747647,1749873033931,-460.0,0.00022288,4]
[365747648,1749873033940,-276.28050142,0.00022332,2]
[365747649,1749873033950,-606.0,0.00022371,2]
[365747650,1749873033959,-606.0,0.00022419,2]
[365747651,1749873033969,-271.22306263,0.00022423,2]
[365747652,1749873033978,-500.0,0.00022423,2]
[365747653,1749873033988,-500.0,0.00022423,2]
[365747654,1749873033997,-500.0,0.00022423,2]
[365747655,1749873034007,-500.0,0.00022423,2]
[365747656,1749873034016,-500.0,0.00022423,2]
[365747657,1749873034027,-179.66015798,0.00022423,2]
[365747658,1749873034039,-500.0,0.00022423,2]
[365747659,1749873034050,-196.9068073,0.00022423,2]
[365747660,1749873034060,-500.0,0.00022423,2]
[365747661,1749873034070,-358.68890692,0.00022423,2]
[365747662,1749873034079,-500.0,0.00022466,2]
[365747663,1749873034090,-388.16355257,0.00022466,2]
[365747664,1749873034099,-500.0,0.00022466,2]
[365747665,1749873034109,-500.0,0.00022466,2]
[365747666,1749873034118,-450.0,0.00022466,2]
[365747667,1749873034128,-500.0,0.00022466,2]
[365747668,1749873034137,-500.0,0.00022466,2]
[365747669,1749873034147,-500.0,0.00022466,2]
[365747670,1749873034156,-500.0,0.00022466,2]
[365747671,1749873034166,-500.0,0.00022466,2]
[365747672,1749873034175,-500.0,0.00022466,2]
[365747673,1749873034185,-500.0,0.00022466,2]
[365747674,1749873034194,-500.0,0.00022466,2]
[365747675,1749873034203,-500.0,0.00022466,2]
[365747676,1749873034218,-500.0,0.00022466,2]
[365747677,1749873034231,-500.0,0.00022466,2]
[365747678,1749873034240,-244.12477582,0.00022466,2]
[365747679,1749873034249,-160.0,0.00022466,2]
[365747680,1749873034259,-160.0,0.00022466,2]
[365747681,1749873034268,-160.0,0.00022472,2]
[365747682,1749873034277,-845.10789306,0.00022472,2]
[365747683,1749873034287,-835.41710878,0.00022472,2]
[365747684,1749873034296,-160.0,0.00022472,2]
[365747685,1749873034306,-213.28201367,0.00022472,2]
[365747686,1749873034315,-160.0,0.00022472,2]
[365747687,1749873034325,-424.40141186,0.00022472,2]
[365747688,1749873034339,-160.0,0.00022472,2]
[365747689,1749873034349,-518.0,0.00022528,2]
[365747690,1749873034359,-501.2082357,0.00022545,2]
[365747691,1749873034368,-500.0,0.00022557,2]
[365747692,1749873034378,-460.0,0.00022559,4]
[365747693,1749873034388,-2835.27,0.00022559,4]
[365747694,1749873034406,-549.21,0.00022559,4]
[365747695,1749873034416,-469.67,0.00022559,4]
[365747696,1749873034425,-836.52,0.00022559,4]
[365747697,1749873034435,-520.0,0.00022559,4]
[365747698,1749873034445,-460.0,0.00022559,4]
[365747699,1749873034457,-515.28,0.00022559,4]
[365747700,1749873034468,-773.31,0.00022559,4]
[365747701,1749873034477,-460.0,0.00022559,4]
[365747702,1749873034487,-460.0,0.00022559,4]
[365747703,1749873034498,-460.0,0.00022559,4]
[365747704,1749873034508,-519.88391592,0.0002256,4]
[365747705,1749873034518,-460.0,0.0002256,4]
[365747706,1749873034530,-451.55731211,0.0002256,4]
[365747707,1749873034540,-848.54,0.0002256,4]
[365747708,1749873034550,-460.0,0.0002256,4]
[365747709,1749873034559,-460.0,0.0002256,4]
[365747710,1749873034569,-460.0,0.0002256,4]
[365747711,1749873034582,-460.0,0.0002256,4]
[365747712,1749873034591,-172.02,0.0002256,4]
[365747713,1749873034601,-460.0,0.0002256,4]
[365747714,1749873034610,-460.0,0.0002256,4]
[365747715,1749873034619,-460.0,0.0002256,4]
[365747716,1749873034629,-460.0,0.0002256,4]
[365747717,1749873034639,-870.39,0.0002256,4]
[365747718,1749873034648,-460.0,0.0002256,4]
[365747719,1749873034658,-460.0,0.00022561,2]
[365747720,1749873034667,-381.88,0.00022577,10]
[365747721,1749873034809,-265.2,0.00022577,10]
[365747722,1749873034820,-207.4,0.00022587,2]
[365747723,1749873034829,-1688.0,0.00022587,2]
[365747724,1749873034839,-5000.0,0.00022587,2]